[Event "*** Titled Tuesday Blitz"]
[Site "Chess.com"]
[Date "2020.05.05"]
[Round "2"]
[White "Rytenko_V"]
[Black "pandamaster3000"]
[Result "1-0"]
[WhiteElo "2472"]
[BlackElo "2245"]
[TimeControl "180+1"]
[EndTime "10:18:30 PDT"]
[Termination "Rytenko_V won by resignation"]

1. e4 {[%clk 0:03:00.9]} 1... c5 {[%clk 0:03:00.1]} 2. Nf3 {[%clk 0:02:58.7]}
2... d6 {[%clk 0:03:00.1]} 3. d4 {[%clk 0:02:58.3]} 3... cxd4 {[%clk 0:03:01]}
4. Nxd4 {[%clk 0:02:59.2]} 4... Nf6 {[%clk 0:03:01.3]} 5. Nc3 {[%clk 0:02:58.7]}
5... a6 {[%clk 0:03:01.8]} 6. f3 {[%clk 0:02:58.9]} 6... e5 {[%clk 0:03:01.4]}
7. Nde2 {[%clk 0:02:58.3]} 7... Be7 {[%clk 0:02:59.7]} 8. g4 {[%clk 0:02:58.5]}
8... h6 {[%clk 0:02:55.1]} 9. Be3 {[%clk 0:02:58.1]} 9... Be6 {[%clk 0:02:52.7]}
10. Qd2 {[%clk 0:02:55.9]} 10... d5 {[%clk 0:02:14]} 11. exd5 {[%clk 0:02:54.5]}
11... Nxd5 {[%clk 0:02:14.9]} 12. Nxd5 {[%clk 0:02:54.5]} 12... Qxd5 {[%clk
0:02:15.5]} 13. Qxd5 {[%clk 0:02:53.1]} 13... Bxd5 {[%clk 0:02:16.4]} 14. Bg2
{[%clk 0:02:53.3]} 14... Nc6 {[%clk 0:02:06.8]} 15. Nc3 {[%clk 0:02:52.9]} 15...
Be6 {[%clk 0:02:07.2]} 16. O-O-O {[%clk 0:02:52.1]} 16... O-O {[%clk 0:02:06.6]}
17. Ne4 {[%clk 0:02:50.4]} 17... Rfd8 {[%clk 0:01:59.3]} 18. Bc5 {[%clk
0:02:46.7]} 18... Rac8 {[%clk 0:01:33.8]} 19. Bxe7 {[%clk 0:02:43.1]} 19...
Rxd1+ {[%clk 0:01:33.1]} 20. Rxd1 {[%clk 0:02:41.7]} 20... Nxe7 {[%clk 0:01:34]}
21. b3 {[%clk 0:02:31]} 21... Nd5 {[%clk 0:01:31.5]} 22. Rd2 {[%clk 0:02:20.7]}
22... Kf8 {[%clk 0:01:20.7]} 23. Kb2 {[%clk 0:02:20.2]} 23... Ke7 {[%clk
0:01:20.5]} 24. c4 {[%clk 0:02:19.3]} 24... Nf4 {[%clk 0:01:14.7]} 25. Bf1
{[%clk 0:02:12.6]} 25... h5 {[%clk 0:01:15.1]} 26. g5 {[%clk 0:02:11.4]} 26...
f5 {[%clk 0:01:15.6]} 27. gxf6+ {[%clk 0:02:07.9]} 27... gxf6 {[%clk 0:01:16.5]}
28. a4 {[%clk 0:01:59.3]} 28... h4 {[%clk 0:01:15.9]} 29. Kc3 {[%clk 0:01:42.5]}
29... h3 {[%clk 0:01:10]} 30. Kb4 {[%clk 0:01:41.8]} 30... Rg8 {[%clk
0:01:07.7]} 31. Ng3 {[%clk 0:01:31.4]} 31... b6 {[%clk 0:00:59.8]} 32. a5 {[%clk
0:01:26.6]} 32... bxa5+ {[%clk 0:00:56.3]} 33. Kxa5 {[%clk 0:01:27]} 33... Rb8
{[%clk 0:00:56.4]} 34. b4 {[%clk 0:01:23.2]} 34... Bc8 {[%clk 0:00:44.9]} 35. c5
{[%clk 0:01:21.6]} 35... Ne6 {[%clk 0:00:36]} 36. Nf5+ {[%clk 0:01:19.6]} 36...
Kf8 {[%clk 0:00:27.1]} 37. Nd6 {[%clk 0:01:11.7]} 37... Nd4 {[%clk 0:00:22.1]}
38. Rxd4 {[%clk 0:00:29.8]} 38... exd4 {[%clk 0:00:21.9]} 39. c6 {[%clk
0:00:26.3]} 39... Be6 {[%clk 0:00:18]} 40. c7 {[%clk 0:00:24.7]} 40... Rc8
{[%clk 0:00:15.5]} 41. Nxc8 {[%clk 0:00:23.6]} 41... Bxc8 {[%clk 0:00:16.4]} 42.
Bxa6 {[%clk 0:00:23.6]} 42... Be6 {[%clk 0:00:14.1]} 43. c8=Q+ {[%clk
0:00:21.5]} 43... Bxc8 {[%clk 0:00:14.3]} 44. Bxc8 {[%clk 0:00:22.4]} 44... d3
{[%clk 0:00:13.3]} 45. Bf5 {[%clk 0:00:22.9]} 45... d2 {[%clk 0:00:12.1]} 46.
Bc2 {[%clk 0:00:23.4]} 1-0

[Event "*** Titled Tuesday Blitz"]
[Site "Chess.com"]
[Date "2020.05.05"]
[Round "2"]
[White "ChainsOfFantasia"]
[Black "mjray79"]
[Result "1-0"]
[WhiteElo "2474"]
[BlackElo "2255"]
[TimeControl "180+1"]
[EndTime "10:18:31 PDT"]
[Termination "ChainsOfFantasia won by checkmate"]

1. d4 {[%clk 0:03:00.9]} 1... Nf6 {[%clk 0:02:59.5]} 2. Nf3 {[%clk 0:03:00.6]}
2... g6 {[%clk 0:02:59.9]} 3. c4 {[%clk 0:03:01.5]} 3... Bg7 {[%clk 0:03:00.3]}
4. Nc3 {[%clk 0:03:02.2]} 4... O-O {[%clk 0:03:00.6]} 5. e4 {[%clk 0:03:01.9]}
5... d6 {[%clk 0:03:01]} 6. Be2 {[%clk 0:03:02.6]} 6... e5 {[%clk 0:03:01]} 7.
O-O {[%clk 0:03:03.5]} 7... Nc6 {[%clk 0:03:00.1]} 8. d5 {[%clk 0:02:50.7]} 8...
Ne7 {[%clk 0:02:59.6]} 9. Ne1 {[%clk 0:02:50.9]} 9... Nd7 {[%clk 0:02:59.4]} 10.
f3 {[%clk 0:02:51.7]} 10... f5 {[%clk 0:02:59.4]} 11. Be3 {[%clk 0:02:52]} 11...
f4 {[%clk 0:02:59.9]} 12. Bf2 {[%clk 0:02:52.1]} 12... g5 {[%clk 0:03:00.3]} 13.
Nd3 {[%clk 0:02:52.6]} 13... Ng6 {[%clk 0:02:56.6]} 14. Rc1 {[%clk 0:02:53.5]}
14... Rf7 {[%clk 0:02:54.5]} 15. c5 {[%clk 0:02:51.5]} 15... Nxc5 {[%clk
0:02:53.7]} 16. Nxc5 {[%clk 0:02:48.8]} 16... dxc5 {[%clk 0:02:51.8]} 17. Bxc5
{[%clk 0:02:35.4]} 17... h5 {[%clk 0:02:48.8]} 18. d6 {[%clk 0:02:26.8]} 18...
Be6 {[%clk 0:02:46.2]} 19. dxc7 {[%clk 0:02:24.2]} 19... Rxc7 {[%clk 0:02:41.6]}
20. Qxd8+ {[%clk 0:02:04.7]} 20... Rxd8 {[%clk 0:02:42.5]} 21. Bxa7 {[%clk
0:01:58.3]} 21... Rd2 {[%clk 0:02:37.9]} 22. Rf2 {[%clk 0:01:31.4]} 22... Rxb2
{[%clk 0:02:32.6]} 23. Bc4 {[%clk 0:01:28.7]} 23... Rxc4 {[%clk 0:02:22.7]} 24.
Rxb2 {[%clk 0:01:26]} 24... g4 {[%clk 0:02:23.6]} 25. Ne2 {[%clk 0:01:17.8]}
25... Ra4 {[%clk 0:02:21.1]} 26. Bf2 {[%clk 0:01:13]} 26... h4 {[%clk
0:02:13.2]} 27. Nc3 {[%clk 0:01:05.8]} 27... Rc4 {[%clk 0:02:06.1]} 28. Rxb7
{[%clk 0:01:02]} 28... g3 {[%clk 0:01:59.6]} 29. Ba7 {[%clk 0:00:50.6]} 29... h3
{[%clk 0:01:50]} 30. a4 {[%clk 0:00:46.9]} 30... Nh4 {[%clk 0:01:35]} 31. hxg3
{[%clk 0:00:46.6]} 31... fxg3 {[%clk 0:01:29.1]} 32. Ne2 {[%clk 0:00:24.6]}
32... Rxa4 {[%clk 0:01:28.5]} 33. Nxg3 {[%clk 0:00:24.4]} 33... hxg2 {[%clk
0:01:18.9]} 34. Nf5 {[%clk 0:00:23.6]} 34... Bxf5 {[%clk 0:00:59.1]} 35. exf5
{[%clk 0:00:24.5]} 35... Ra2 {[%clk 0:00:55.8]} 36. Bf2 {[%clk 0:00:23.6]} 36...
Nxf3+ {[%clk 0:00:47.1]} 37. Kxg2 {[%clk 0:00:24]} 37... e4 {[%clk 0:00:48]} 38.
Rc8+ {[%clk 0:00:21]} 38... Kh7 {[%clk 0:00:36.1]} 39. f6 {[%clk 0:00:20.9]}
39... e3 {[%clk 0:00:32.2]} 40. Kxf3 {[%clk 0:00:20.3]} 40... Kh6 {[%clk
0:00:33.1]} 41. fxg7 {[%clk 0:00:20]} 41... Rxf2+ {[%clk 0:00:32.3]} 42. Kxe3
{[%clk 0:00:19.9]} 42... Rg2 {[%clk 0:00:32.4]} 43. Rh8+ {[%clk 0:00:17.8]}
43... Kg5 {[%clk 0:00:28.4]} 44. g8=Q+ {[%clk 0:00:18.7]} 44... Kf5 {[%clk
0:00:29.3]} 45. Rf7+ {[%clk 0:00:17]} 45... Ke6 {[%clk 0:00:27.5]} 46. Qe8+
{[%clk 0:00:16.1]} 46... Kd6 {[%clk 0:00:26.5]} 47. Rh6+ {[%clk 0:00:16.5]}
47... Kc5 {[%clk 0:00:26]} 48. Qc6+ {[%clk 0:00:16.4]} 48... Kb4 {[%clk
0:00:25.7]} 49. Rb7+ {[%clk 0:00:17.3]} 49... Ka3 {[%clk 0:00:25.2]} 50. Qa6#
{[%clk 0:00:17.2]} 1-0

[Event "*** Titled Tuesday Blitz"]
[Site "Chess.com"]
[Date "2020.05.05"]
[Round "2"]
[White "Andrei_Belozerov"]
[Black "AnishGiri"]
[Result "0-1"]
[WhiteElo "2586"]
[BlackElo "3052"]
[TimeControl "180+1"]
[EndTime "10:18:32 PDT"]
[Termination "AnishGiri won by resignation"]

1. e4 {[%clk 0:02:53.2]} 1... c5 {[%clk 0:02:59.3]} 2. Nf3 {[%clk 0:02:51.6]}
2... d6 {[%clk 0:02:59.6]} 3. d4 {[%clk 0:02:51.5]} 3... cxd4 {[%clk 0:03:00.5]}
4. Nxd4 {[%clk 0:02:51.4]} 4... Nf6 {[%clk 0:03:00.7]} 5. Nc3 {[%clk 0:02:51.8]}
5... a6 {[%clk 0:03:01.3]} 6. Be3 {[%clk 0:02:51.6]} 6... e5 {[%clk 0:03:01.1]}
7. Nb3 {[%clk 0:02:51.5]} 7... Be7 {[%clk 0:02:59.4]} 8. f3 {[%clk 0:02:48.5]}
8... Be6 {[%clk 0:02:59.7]} 9. Qd2 {[%clk 0:02:48.3]} 9... h5 {[%clk 0:03:00.3]}
10. Nd5 {[%clk 0:02:46.3]} 10... Bxd5 {[%clk 0:02:59.4]} 11. exd5 {[%clk
0:02:46.2]} 11... Nbd7 {[%clk 0:02:59]} 12. Be2 {[%clk 0:02:43.5]} 12... Qc7
{[%clk 0:02:56.6]} 13. O-O {[%clk 0:02:37.1]} 13... Nb6 {[%clk 0:02:54.3]} 14.
Bf2 {[%clk 0:01:47.9]} 14... Nbxd5 {[%clk 0:02:51.3]} 15. Rfd1 {[%clk
0:01:43.3]} 15... h4 {[%clk 0:02:42.6]} 16. Qa5 {[%clk 0:01:39.5]} 16... Qc6
{[%clk 0:02:35.1]} 17. c4 {[%clk 0:01:19.1]} 17... Nf4 {[%clk 0:02:33.2]} 18.
Bf1 {[%clk 0:01:18]} 18... Rh5 {[%clk 0:02:07.3]} 19. Qe1 {[%clk 0:01:04.6]}
19... h3 {[%clk 0:01:47.5]} 20. g3 {[%clk 0:00:59]} 20... Ne6 {[%clk 0:01:36.1]}
21. c5 {[%clk 0:00:54.6]} 21... d5 {[%clk 0:01:32]} 22. Na5 {[%clk 0:00:52.5]}
22... Qc7 {[%clk 0:01:30.4]} 23. b4 {[%clk 0:00:52.2]} 23... Rd8 {[%clk
0:01:23.5]} 24. Be2 {[%clk 0:00:51.2]} 24... Rf5 {[%clk 0:01:18.2]} 25. Rac1
{[%clk 0:00:49.4]} 25... Ng5 {[%clk 0:01:15.3]} 26. Rc3 {[%clk 0:00:47.7]} 26...
d4 {[%clk 0:01:14.7]} 27. Rb3 {[%clk 0:00:47.2]} 27... Kf8 {[%clk 0:01:08]} 28.
Nc4 {[%clk 0:00:46]} 28... Qc6 {[%clk 0:01:06.7]} 29. Nd2 {[%clk 0:00:45.8]}
29... d3 {[%clk 0:01:04.3]} 30. Bxd3 {[%clk 0:00:43.5]} 30... Nxf3+ {[%clk
0:00:43.6]} 31. Nxf3 {[%clk 0:00:43]} 31... Qxf3 {[%clk 0:00:38.9]} 32. Qf1
{[%clk 0:00:33.4]} 32... Ng4 {[%clk 0:00:31.9]} 33. Be2 {[%clk 0:00:32]} 33...
Qxf2+ {[%clk 0:00:29.8]} 34. Qxf2 {[%clk 0:00:31.5]} 34... Rxd1+ {[%clk
0:00:24.4]} 35. Bxd1 {[%clk 0:00:30.3]} 35... Nxf2 {[%clk 0:00:24.6]} 36. Be2
{[%clk 0:00:26.5]} 36... e4 {[%clk 0:00:23.1]} 0-1

[Event "*** Titled Tuesday Blitz"]
[Site "Chess.com"]
[Date "2020.05.05"]
[Round "2"]
[White "1f3_2g41-0"]
[Black "mirciulica14"]
[Result "0-1"]
[WhiteElo "2300"]
[BlackElo "2625"]
[TimeControl "180+1"]
[EndTime "10:18:32 PDT"]
[Termination "mirciulica14 won on time"]

1. e4 {[%clk 0:03:00.9]} 1... e5 {[%clk 0:03:00]} 2. Nf3 {[%clk 0:03:00.7]} 2...
Nc6 {[%clk 0:03:00.6]} 3. Bb5 {[%clk 0:03:01.1]} 3... a6 {[%clk 0:03:01.2]} 4.
Ba4 {[%clk 0:03:01.4]} 4... Nf6 {[%clk 0:03:01.7]} 5. O-O {[%clk 0:03:01.8]}
5... b5 {[%clk 0:03:02.5]} 6. Bb3 {[%clk 0:03:01.6]} 6... Bc5 {[%clk 0:03:03.4]}
7. c3 {[%clk 0:03:00.8]} 7... d6 {[%clk 0:03:03.9]} 8. d4 {[%clk 0:03:01]} 8...
Bb6 {[%clk 0:03:04.5]} 9. Re1 {[%clk 0:02:57.9]} 9... O-O {[%clk 0:03:01.9]} 10.
h3 {[%clk 0:02:54.9]} 10... h6 {[%clk 0:03:02]} 11. Be3 {[%clk 0:02:52.2]} 11...
exd4 {[%clk 0:02:53.9]} 12. cxd4 {[%clk 0:02:50.6]} 12... Re8 {[%clk 0:02:54.3]}
13. Nbd2 {[%clk 0:02:39.8]} 13... d5 {[%clk 0:02:26.8]} 14. e5 {[%clk
0:02:36.1]} 14... Ne4 {[%clk 0:02:27]} 15. Rc1 {[%clk 0:02:30.9]} 15... Ne7
{[%clk 0:02:13.3]} 16. Nxe4 {[%clk 0:02:15]} 16... dxe4 {[%clk 0:02:14.2]} 17.
Nd2 {[%clk 0:02:14.6]} 17... Bb7 {[%clk 0:02:02.4]} 18. Qh5 {[%clk 0:02:02.2]}
18... Rf8 {[%clk 0:01:38.7]} 19. Bxh6 {[%clk 0:01:50.4]} 19... gxh6 {[%clk
0:01:24.6]} 20. Nxe4 {[%clk 0:01:49.8]} 20... Kg7 {[%clk 0:01:02.5]} 21. Re3
{[%clk 0:01:14.4]} 21... Ng6 {[%clk 0:00:44.4]} 22. e6 {[%clk 0:00:53.8]} 22...
fxe6 {[%clk 0:00:22.5]} 23. Bxe6 {[%clk 0:00:40.5]} 23... Qxd4 {[%clk
0:00:20.9]} 24. Bf5 {[%clk 0:00:30.7]} 24... Rxf5 {[%clk 0:00:20.8]} 25. Qxf5
{[%clk 0:00:30.2]} 25... Rf8 {[%clk 0:00:21.4]} 26. Qg4 {[%clk 0:00:18.5]} 26...
Rf4 {[%clk 0:00:20]} 27. Qe6 {[%clk 0:00:11.4]} 27... Rxe4 {[%clk 0:00:17.8]}
28. Rxe4 {[%clk 0:00:07.4]} 28... Bxe4 {[%clk 0:00:17.8]} 29. Kh1 {[%clk
0:00:04]} 29... Qd5 {[%clk 0:00:15.2]} 30. Qc8 {[%clk 0:00:03]} 30... Bxg2+
{[%clk 0:00:15.1]} 31. Kh2 {[%clk 0:00:02.9]} 31... Be4 {[%clk 0:00:14.8]} 32.
Rg1 {[%clk 0:00:02]} 32... Qe5+ {[%clk 0:00:15]} 33. Rg3 {[%clk 0:00:02.2]}
33... Bxf2 {[%clk 0:00:14.5]} 34. Qd7+ {[%clk 0:00:02.8]} 34... Kf6 {[%clk
0:00:11]} 35. Qd8+ {[%clk 0:00:02.8]} 35... Ke6 {[%clk 0:00:08.4]} 36. Qe8+
{[%clk 0:00:02.6]} 36... Kd5 {[%clk 0:00:08.7]} 37. Qd7+ {[%clk 0:00:02]} 37...
Kc5 {[%clk 0:00:08.9]} 0-1

[Event "*** Titled Tuesday Blitz"]
[Site "Chess.com"]
[Date "2020.05.05"]
[Round "2"]
[White "Evgeny81"]
[Black "MFBerna"]
[Result "1-0"]
[WhiteElo "2676"]
[BlackElo "2327"]
[TimeControl "180+1"]
[EndTime "10:18:32 PDT"]
[Termination "Evgeny81 won on time"]

1. d4 {[%clk 0:03:00.9]} 1... d5 {[%clk 0:02:59.3]} 2. c4 {[%clk 0:03:00.6]}
2... e6 {[%clk 0:02:59.3]} 3. Nc3 {[%clk 0:02:59.5]} 3... Be7 {[%clk 0:02:59.5]}
4. cxd5 {[%clk 0:02:58.3]} 4... exd5 {[%clk 0:03:00.4]} 5. Bf4 {[%clk
0:02:58.5]} 5... c6 {[%clk 0:03:00.7]} 6. e3 {[%clk 0:02:58.7]} 6... Nf6 {[%clk
0:03:00.1]} 7. Bd3 {[%clk 0:02:58.9]} 7... O-O {[%clk 0:02:59.1]} 8. Nge2 {[%clk
0:02:59]} 8... Re8 {[%clk 0:02:57.6]} 9. Qc2 {[%clk 0:02:58.2]} 9... Nbd7 {[%clk
0:02:57.2]} 10. O-O-O {[%clk 0:02:56]} 10... b5 {[%clk 0:02:56.3]} 11. g4 {[%clk
0:02:54.7]} 11... a5 {[%clk 0:02:50.1]} 12. g5 {[%clk 0:02:53.9]} 12... Nh5
{[%clk 0:02:50.2]} 13. Bxh7+ {[%clk 0:02:53.5]} 13... Kh8 {[%clk 0:02:36.8]} 14.
Nxd5 {[%clk 0:02:50.7]} 14... Nxf4 {[%clk 0:02:08.8]} 15. Ndxf4 {[%clk
0:02:50.2]} 15... Bxg5 {[%clk 0:02:02.2]} 16. h4 {[%clk 0:02:43.6]} 16... Bh6
{[%clk 0:01:53.4]} 17. Be4 {[%clk 0:02:36]} 17... Ra7 {[%clk 0:01:18.4]} 18.
Rdg1 {[%clk 0:02:22.1]} 18... Nf6 {[%clk 0:01:18.1]} 19. Bf5 {[%clk 0:02:08.1]}
19... Qd6 {[%clk 0:00:58]} 20. Kb1 {[%clk 0:01:58.3]} 20... Rc7 {[%clk
0:00:45.5]} 21. Bxc8 {[%clk 0:01:39]} 21... Rcxc8 {[%clk 0:00:46.4]} 22. Rg5
{[%clk 0:01:21.8]} 22... Ne4 {[%clk 0:00:41.2]} 23. Rh5 {[%clk 0:01:09.1]} 23...
Kg8 {[%clk 0:00:39.7]} 24. Rg1 {[%clk 0:01:03.2]} 24... Kf8 {[%clk 0:00:40]} 25.
Rg2 {[%clk 0:00:53.9]} 25... c5 {[%clk 0:00:34.4]} 26. d5 {[%clk 0:00:52.5]}
26... Nf6 {[%clk 0:00:29.1]} 27. Rf5 {[%clk 0:00:49.1]} 27... Re5 {[%clk
0:00:24.6]} 28. Ng3 {[%clk 0:00:44.6]} 28... Bxf4 {[%clk 0:00:22.1]} 29. Rxf4
{[%clk 0:00:43.9]} 29... Rxd5 {[%clk 0:00:17.5]} 30. Rg1 {[%clk 0:00:40]} 30...
Rd2 {[%clk 0:00:17.5]} 31. Qc1 {[%clk 0:00:37.7]} 31... Qd3+ {[%clk 0:00:15.3]}
32. Ka1 {[%clk 0:00:37.3]} 32... c4 {[%clk 0:00:14.1]} 33. Rd4 {[%clk
0:00:36.1]} 33... Rc2 {[%clk 0:00:05.8]} 34. Rxd3 {[%clk 0:00:35]} 34... cxd3
{[%clk 0:00:04.4]} 35. Qb1 {[%clk 0:00:29.3]} 35... d2 {[%clk 0:00:04.4]} 36.
Ne2 {[%clk 0:00:29.5]} 36... Ne4 {[%clk 0:00:04.8]} 37. Nc3 {[%clk 0:00:27.6]}
37... R8xc3 {[%clk 0:00:02.6]} 38. bxc3 {[%clk 0:00:26.8]} 38... Rxc3 {[%clk
0:00:02.3]} 39. Qxe4 {[%clk 0:00:24.7]} 39... Rc1+ {[%clk 0:00:02.4]} 40. Qb1
{[%clk 0:00:24.8]} 40... Rxb1+ {[%clk 0:00:01.4]} 41. Kxb1 {[%clk 0:00:24.4]}
41... Ke7 {[%clk 0:00:01.8]} 42. Kc2 {[%clk 0:00:24.4]} 1-0

[Event "*** Titled Tuesday Blitz"]
[Site "Chess.com"]
[Date "2020.05.05"]
[Round "2"]
[White "Al_Shima"]
[Black "barbara25"]
[Result "1-0"]
[WhiteElo "2452"]
[BlackElo "2215"]
[TimeControl "180+1"]
[EndTime "10:18:32 PDT"]
[Termination "Al_Shima won by resignation"]

1. b3 {[%clk 0:03:00.9]} 1... Nf6 {[%clk 0:02:58.1]} 2. Bb2 {[%clk 0:03:00.7]}
2... e6 {[%clk 0:02:58.4]} 3. e3 {[%clk 0:03:00.6]} 3... d5 {[%clk 0:02:58.6]}
4. f4 {[%clk 0:03:00.7]} 4... Be7 {[%clk 0:02:58.7]} 5. Nf3 {[%clk 0:03:01.1]}
5... O-O {[%clk 0:02:58.7]} 6. Bd3 {[%clk 0:03:01.6]} 6... c5 {[%clk 0:02:59.2]}
7. O-O {[%clk 0:03:01]} 7... Nc6 {[%clk 0:02:58.5]} 8. Ne5 {[%clk 0:03:00.9]}
8... Ne4 {[%clk 0:02:37.9]} 9. Nxc6 {[%clk 0:02:59.4]} 9... bxc6 {[%clk
0:02:36.8]} 10. Nc3 {[%clk 0:02:57.9]} 10... f5 {[%clk 0:02:35.5]} 11. Na4
{[%clk 0:02:53.3]} 11... a5 {[%clk 0:02:19.7]} 12. Qe2 {[%clk 0:02:51]} 12...
Rb8 {[%clk 0:02:09.3]} 13. Ba3 {[%clk 0:02:43.7]} 13... c4 {[%clk 0:01:40.6]}
14. Bxe7 {[%clk 0:02:32.2]} 14... cxd3 {[%clk 0:01:32.7]} 15. cxd3 {[%clk
0:02:32.2]} 15... Qxe7 {[%clk 0:01:30.4]} 16. dxe4 {[%clk 0:02:32.1]} 16... dxe4
{[%clk 0:01:28.1]} 17. Qc4 {[%clk 0:02:23.6]} 17... Rd8 {[%clk 0:01:25.2]} 18.
Rfd1 {[%clk 0:02:02.8]} 18... Rb4 {[%clk 0:01:23.8]} 19. Qxc6 {[%clk 0:01:56.9]}
19... Bd7 {[%clk 0:01:23.4]} 20. Qc7 {[%clk 0:01:53.3]} 20... Rc8 {[%clk
0:01:04.6]} 21. Qxa5 {[%clk 0:01:52.4]} 21... Bxa4 {[%clk 0:01:02.5]} 22. bxa4
{[%clk 0:01:53.3]} 22... Rcb8 {[%clk 0:00:57.9]} 23. Rac1 {[%clk 0:01:46.7]}
23... Qe8 {[%clk 0:00:56]} 24. Qe5 {[%clk 0:01:19.4]} 24... Rxa4 {[%clk
0:00:52.3]} 25. Rc7 {[%clk 0:01:17.5]} 25... Qg6 {[%clk 0:00:39.3]} 26. Rxg7+
{[%clk 0:01:01]} 26... Qxg7 {[%clk 0:00:39.1]} 27. Qxb8+ {[%clk 0:01:00.2]}
27... Qf8 {[%clk 0:00:26.9]} 28. Qxf8+ {[%clk 0:00:54.8]} 28... Kxf8 {[%clk
0:00:27.1]} 29. Ra1 {[%clk 0:00:53.7]} 29... Ra3 {[%clk 0:00:27.2]} 30. Kf2
{[%clk 0:00:52.4]} 30... Ke7 {[%clk 0:00:27.4]} 31. Ke2 {[%clk 0:00:46.7]} 31...
Kd6 {[%clk 0:00:27.6]} 32. Kd1 {[%clk 0:00:46.5]} 32... Kd5 {[%clk 0:00:27.7]}
33. Kc2 {[%clk 0:00:46]} 33... Kc4 {[%clk 0:00:27.9]} 34. h3 {[%clk 0:00:41.4]}
34... h5 {[%clk 0:00:24.5]} 35. g3 {[%clk 0:00:40.7]} 35... Ra7 {[%clk
0:00:22.3]} 36. a4 {[%clk 0:00:35.2]} 36... Kc5 {[%clk 0:00:19.5]} 37. Kc3
{[%clk 0:00:29.9]} 37... Kb6 {[%clk 0:00:18.6]} 38. Kb4 {[%clk 0:00:23]} 38...
Ka6 {[%clk 0:00:18.6]} 39. Kc5 {[%clk 0:00:20.5]} 39... Rg7 {[%clk 0:00:18.4]}
40. Kd6 {[%clk 0:00:18.5]} 40... Rxg3 {[%clk 0:00:17.2]} 41. Kxe6 {[%clk
0:00:18.7]} 41... Rxh3 {[%clk 0:00:17.7]} 42. Kxf5 {[%clk 0:00:18.9]} 42... Rh2
{[%clk 0:00:18.3]} 43. Kxe4 {[%clk 0:00:17.2]} 43... Rxd2 {[%clk 0:00:17.7]} 44.
Rh1 {[%clk 0:00:17.3]} 1-0

[Event "*** Titled Tuesday Blitz"]
[Site "Chess.com"]
[Date "2020.05.05"]
[Round "2"]
[White "VladimirBelous"]
[Black "louis198"]
[Result "0-1"]
[WhiteElo "2723"]
[BlackElo "2525"]
[TimeControl "180+1"]
[EndTime "10:18:33 PDT"]
[Termination "louis198 won by resignation"]

1. Nf3 {[%clk 0:02:57.8]} 1... d5 {[%clk 0:02:58.9]} 2. c4 {[%clk 0:02:56.3]}
2... e6 {[%clk 0:02:59.1]} 3. g3 {[%clk 0:02:56.2]} 3... g6 {[%clk 0:02:59.2]}
4. Bg2 {[%clk 0:02:52.9]} 4... Bg7 {[%clk 0:02:59.6]} 5. O-O {[%clk 0:02:53.2]}
5... Ne7 {[%clk 0:03:00.2]} 6. d4 {[%clk 0:02:47.4]} 6... O-O {[%clk 0:02:59.8]}
7. Qc2 {[%clk 0:02:43.8]} 7... Nbc6 {[%clk 0:02:59.4]} 8. Rd1 {[%clk 0:02:43.6]}
8... a5 {[%clk 0:02:58.2]} 9. Bf4 {[%clk 0:02:34.5]} 9... Nf5 {[%clk 0:02:51.1]}
10. e3 {[%clk 0:02:24.3]} 10... h5 {[%clk 0:02:34.9]} 11. Nc3 {[%clk 0:02:15.6]}
11... Nce7 {[%clk 0:02:05.6]} 12. e4 {[%clk 0:01:51.7]} 12... dxe4 {[%clk
0:02:04.7]} 13. Nxe4 {[%clk 0:01:51.4]} 13... Nd6 {[%clk 0:01:39.8]} 14. Ne5
{[%clk 0:01:37.6]} 14... Nef5 {[%clk 0:01:36.8]} 15. Nc3 {[%clk 0:01:27.7]}
15... g5 {[%clk 0:01:20.2]} 16. Be3 {[%clk 0:01:22.7]} 16... Nxe3 {[%clk
0:01:14.1]} 17. fxe3 {[%clk 0:01:23.6]} 17... Nf5 {[%clk 0:01:14.5]} 18. Nf3
{[%clk 0:01:19]} 18... Nxe3 {[%clk 0:01:11]} 19. Qd2 {[%clk 0:01:19.1]} 19...
Nxd1 {[%clk 0:01:11.2]} 20. Rxd1 {[%clk 0:01:20]} 20... g4 {[%clk 0:01:11.2]}
21. Nh4 {[%clk 0:01:12.5]} 21... Ra6 {[%clk 0:01:07.3]} 22. Ne4 {[%clk
0:01:10.9]} 22... f5 {[%clk 0:01:01]} 23. Nc5 {[%clk 0:01:05.7]} 23... Rd6
{[%clk 0:01:01.1]} 24. d5 {[%clk 0:01:05.9]} 24... f4 {[%clk 0:00:46.4]} 25. Ng6
{[%clk 0:01:01.8]} 25... f3 {[%clk 0:00:42.5]} 26. Nxf8 {[%clk 0:00:57]} 26...
Qxf8 {[%clk 0:00:42.7]} 27. Bf1 {[%clk 0:00:57.3]} 27... exd5 {[%clk 0:00:40.8]}
28. cxd5 {[%clk 0:00:57.8]} 28... Bf5 {[%clk 0:00:39.8]} 29. Bc4 {[%clk
0:00:55.6]} 29... b6 {[%clk 0:00:37.9]} 30. Nd3 {[%clk 0:00:52.5]} 30... Bh6
{[%clk 0:00:37.6]} 31. Nf4 {[%clk 0:00:48.9]} 31... Bd7 {[%clk 0:00:35.1]} 32.
Kf2 {[%clk 0:00:41.7]} 32... b5 {[%clk 0:00:34.2]} 33. Bb3 {[%clk 0:00:40.2]}
33... a4 {[%clk 0:00:34]} 34. Bc2 {[%clk 0:00:40]} 34... Bxf4 {[%clk 0:00:34]}
35. Qxf4 {[%clk 0:00:26.2]} 35... Qxf4 {[%clk 0:00:34]} 36. gxf4 {[%clk
0:00:27.1]} 36... Kg7 {[%clk 0:00:34.6]} 37. h3 {[%clk 0:00:23.2]} 37... Kf6
{[%clk 0:00:34.6]} 38. hxg4 {[%clk 0:00:22.4]} 38... hxg4 {[%clk 0:00:35]} 39.
Be4 {[%clk 0:00:17.5]} 39... Bf5 {[%clk 0:00:35.1]} 40. Ke3 {[%clk 0:00:07.1]}
40... Bxe4 {[%clk 0:00:35.2]} 41. Kxe4 {[%clk 0:00:08]} 41... c6 {[%clk
0:00:35.7]} 42. Rh1 {[%clk 0:00:06.1]} 42... cxd5+ {[%clk 0:00:34.3]} 43. Ke3
{[%clk 0:00:06.6]} 43... d4+ {[%clk 0:00:33.8]} 44. Kf2 {[%clk 0:00:07.1]} 44...
Kf5 {[%clk 0:00:33.8]} 45. Kg3 {[%clk 0:00:05.6]} 45... d3 {[%clk 0:00:34]} 46.
Rh5+ {[%clk 0:00:05.2]} 46... Ke4 {[%clk 0:00:33.1]} 47. Re5+ {[%clk 0:00:04.2]}
47... Kd4 {[%clk 0:00:33.1]} 48. Kxg4 {[%clk 0:00:04]} 48... d2 {[%clk
0:00:32.9]} 0-1